bitfinex/quotes_ETHUSD_20260302
["timestamp","ask_amount","ask_price","bid_price","bid_amount"]
[1772468887129,4.35159506,2060.3,2059.2,5.81683444]
[1772468887130,1.203,2060.2,2059.2,5.81683444]
[1772468887660,1.203,2060.2,2059.3,4.60279653]
[1772468888040,1.203,2060.1,2059.3,4.60279653]
[1772468888259,1.203,2060.2,2059.3,8.85151561]
[1772468888460,1.203,2060.5,2059.5,4.24871908]
[1772468888797,1.21335662,2060.4,2059.7,1.21376899]
[1772468888935,5.56495168,2060.4,2059.5,1.21384368]
[1772468889260,4.35159506,2060.3,2059.5,1.21384368]
[1772468889560,1.203,2060.2,2059.5,1.21384368]
[1772468889749,1.203,2060.2,2059.3,4.85595626]
[1772468891267,1.202,2060.1,2059.3,9.45875279]
[1772468891635,1.21335662,2060.4,2059.3,9.45875279]
[1772468891868,1.21327597,2060.6,2059.4,4.60279653]
[1772468892039,1.21327597,2060.6,2059.4,5.57479653]
[1772468892040,1.202,2060.4,2059.4,5.57479653]
[1772468892440,1.202,2060.4,2059.4,4.60279653]
[1772468892661,1.21327597,2060.6,2059.4,4.60279653]
[1772468892861,1.202,2060.5,2059.4,4.60279653]
[1772468893051,2.41533326,2060.5,2059.5,1.21388686]
[1772468893247,2.41533326,2060.5,2059.5,5.81668339]
[1772468893461,4.35159506,2060.1,2059.0,1.21418164]
[1772468893764,1.202,2060.0,2059.0,1.21418164]
[1772468894270,1.202,2060.2,2059.1,4.60279653]
[1772468895064,4.85302582,2060.6,2059.4,1.2139458]
[1772468895065,1.2132918,2060.6,2059.4,1.2139458]
[1772468895264,1.202,2060.5,2059.5,4.48587188]
[1772468895445,5.75377072,2060.5,2059.5,4.48587188]
[1772468896242,2.41620611,2060.7,2059.5,4.48587188]
[1772468897038,1.203,2060.7,2059.7,4.48587188]
[1772468897366,4.29083082,2060.6,2059.6,1.21482792]
[1772468897669,0.002,2060.2,2059.6,1.21482792]
[1772468899675,0.002,2060.2,2059.7,4.19803262]
[1772468900252,0.002,2060.2,2059.6,1.21482792]
[1772468900660,0.002,2060.2,2059.6,0.001]
[1772468901071,4.29283082,2060.2,2059.6,0.001]
[1772468901441,5.50436414,2060.1,2059.6,0.001]
[1772468901645,4.29083082,2060.0,2059.0,1.21418164]
[1772468901840,5.49083082,2059.9,2059.0,1.21418164]
[1772468902654,1.21353332,2060.1,2058.9,5.41326651]
[1772468902655,5.50436414,2060.1,2058.9,5.41326651]
[1772468902857,1.2,2060.0,2058.9,5.41326651]
[1772468903051,5.50436414,2060.1,2058.9,5.41326651]
[1772468903262,1.201,2060.0,2059.0,4.19803262]
[1772468903579,2.41463648,2060.0,2059.1,1.21412267]
[1772468904340,6.7054673,2060.0,2059.1,1.21412267]
[1772468904743,5.5044673,2060.0,2059.1,1.21412267]
[1772468904947,1.201,2059.9,2059.1,1.21412267]
[1772468905680,0.002,2060.2,2059.0,4.19803262]
[1772468905849,1.201,2060.1,2059.2,4.19803262]
[1772468906177,0.002,2060.2,2059.2,4.19803262]
[1772468906348,1.201,2060.1,2059.2,4.19803262]
[1772468906775,0.002,2060.2,2059.2,4.19803262]
[1772468906945,1.21549075,2060.2,2059.2,4.19803262]
[1772468907145,1.21549075,2060.2,2059.3,0.977]
[1772468907586,1.21549075,2060.2,2059.4,1.2139458]
[1772468907913,5.50632157,2060.2,2059.4,1.2139458]
[1772468908478,4.29083082,2060.1,2059.0,1.21418164]
[1772468909784,1.21359223,2060.0,2059.0,1.21418164]
[1772468910176,5.50442305,2060.0,2059.0,1.21418164]
[1772468910373,4.29083082,2059.9,2059.0,1.21418164]
[1772468910598,5.49183082,2059.8,2059.0,1.21418164]
[1772468910803,4.29083082,2059.8,2059.0,1.21418164]
[1772468911002,1.201,2059.7,2059.0,1.21418164]
[1772468911805,5.49183082,2059.7,2059.0,1.21418164]
[1772468912009,1.21382792,2059.6,2058.9,0.001]
[1772468913609,1.21365114,2059.9,2059.2,0.001]
[1772468913902,1.202,2059.9,2059.3,1.21400475]
[1772468914272,2.41565967,2059.9,2059.2,0.001]
[1772468914473,2.41565967,2059.9,2059.2,1.21501512]
[1772468914474,4.29083082,2059.8,2059.2,1.21501512]
[1772468914674,4.29083082,2059.8,2059.2,1.21506019]
[1772468915514,4.29083082,2059.8,2059.2,0.001]
[1772468916191,4.29083082,2059.4,2059.0,0.001]
[1772468918006,1.204,2059.7,2059.0,0.001]
[1772468918884,1.21363158,2060.0,2059.0,0.001]
[1772468919085,5.49483082,2059.9,2059.0,0.001]
[1772468919477,4.29083082,2059.8,2059.0,0.001]
[1772468920082,5.50458364,2059.8,2059.0,0.001]
[1772468920677,4.29083082,2059.8,2059.0,0.001]
[1772468920894,1.204,2059.8,2059.0,4.19903262]
[1772468921184,1.204,2059.9,2059.0,4.19903262]
[1772468921813,4.29083082,2059.8,2059.0,0.001]
[1772468922013,4.29083082,2059.6,2059.0,0.001]
[1772468922204,5.49483082,2059.5,2058.9,0.001]
[1772468923145,1.205,2059.5,2058.9,0.001]
[1772468923438,4.29083082,2059.3,2058.7,0.001]
[1772468924007,5.50488572,2059.3,2058.7,0.001]
[1772468924235,5.50488572,2059.3,2058.7,1.21535649]
[1772468924406,5.50488572,2059.3,2058.7,0.001]
[1772468924916,1.21382447,2059.7,2058.7,1.21533978]
[1772468925122,1.21382447,2059.7,2058.8,0.977]
[1772468925632,1.21382447,2059.7,2058.7,1.21533978]
[1772468925839,1.21382447,2059.7,2058.8,0.977]
[1772468926159,4.29083082,2059.9,2058.9,1.21424061]
[1772468926515,4.85435537,2060.1,2059.0,4.19803262]
[1772468926746,4.85435537,2060.1,2059.1,0.977]
[1772468927233,4.85435537,2060.1,2059.1,5.17503262]
[1772468927440,1.21551274,2060.2,2059.1,5.17503262]
[1772468927638,1.21551274,2060.2,2059.1,4.19803262]
[1772468927817,1.21551274,2060.2,2059.2,0.977]
[1772468928022,0.002,2060.2,2059.4,4.40313219]
[1772468929238,0.002,2060.2,2059.5,0.977]
[1772468929838,0.002,2060.5,2059.6,4.40313219]
[1772468930010,0.002,2059.9,2059.8,4.40313219]
[1772468930210,0.002,2060.5,2059.7,1.21376899]
[1772468930408,0.002,2060.5,2059.8,0.978]
[1772468930631,0.002,2060.5,2059.7,1.21376899]
[1772468930940,0.002,2060.1,2059.8,0.978]
[1772468931110,0.002,2060.5,2059.8,0.978]
[1772468931638,0.002,2060.4,2059.8,5.38113219]
[1772468931837,0.002,2060.5,2059.8,4.40313219]
[1772468932038,0.002,2060.5,2060.0,1.21359223]
[1772468932423,0.002,2060.5,2060.0,5.61672442]
[1772468934014,0.002,2060.5,2060.1,4.40313219]
[1772468934214,0.002,2060.5,2060.3,4.40313219]
[1772468934421,0.002,2060.5,2060.4,5.38513219]
[1772468934646,0.002,2060.7,2060.4,5.38513219]
[1772468934938,0.002,2060.9,2060.4,4.40313219]
[1772468935319,0.002,2060.9,2060.2,1.21347441]
[1772468935742,0.002,2060.9,2060.3,0.984]
[1772468935941,0.002,2060.9,2060.4,0.984]
[1772468936340,0.002,2060.9,2060.5,0.984]
[1772468936515,4.16134615,2060.9,2060.0,1.21359223]
[1772468936841,4.16134615,2060.9,2059.9,1.21360343]
[1772468937050,4.16134615,2060.9,2060.1,0.984]
[1772468937542,0.002,2060.9,2060.2,4.40313219]
[1772468938449,0.002,2060.9,2060.3,1.21341552]
[1772468939353,0.002,2060.9,2060.4,0.985]
[1772468939748,0.002,2060.9,2060.3,1.21341552]
[1772468940130,0.002,2060.9,2060.4,0.986]
[1772468940452,0.002,2060.9,2060.5,0.986]
[1772468940632,0.002,2060.9,2060.0,1.21359223]
[1772468940832,4.16134615,2060.9,2060.1,0.986]
[1772468941554,4.16134615,2060.9,2060.2,0.986]
[1772468941722,4.16134615,2060.9,2059.6,1.21382792]
[1772468941924,4.16134615,2060.9,2059.7,0.986]
[1772468942346,5.37246726,2060.8,2059.8,1.21371006]
[1772468942652,5.37246726,2060.8,2059.7,5.84084027]
[1772468942653,4.15934615,2060.7,2059.3,1.2139458]
[1772468943457,1.21312111,2060.8,2059.3,1.2139458]
[1772468943458,4.15934615,2060.6,2059.4,0.987]
[1772468943950,4.15934615,2060.6,2059.4,5.39013219]
[1772468944334,5.37264372,2060.6,2059.6,4.40313219]
[1772468944854,1.21522143,2060.7,2059.6,4.40313219]
[1772468945055,0.002,2060.7,2059.6,4.40313219]
[1772468945469,0.002,2060.9,2059.6,4.46866819]
[1772468945630,0.002,2060.9,2059.6,4.79295751]
[1772468946273,1.21506265,2060.9,2059.9,4.40313219]
[1772468946474,0.002,2060.9,2060.0,6.60472442]
[1772468946834,0.002,2060.9,2060.0,5.61672442]
[1772468947059,0.002,2060.9,2060.1,0.988]
[1772468947440,0.002,2060.9,2060.0,5.61672442]
[1772468947653,0.002,2060.9,2060.1,0.988]
[1772468947852,0.002,2060.9,2060.0,5.61672442]
[1772468948052,0.002,2060.9,2060.2,0.988]
[1772468948469,0.002,2060.9,2060.3,0.988]
[1772468948879,0.002,2060.9,2060.4,0.988]
[1772468949246,0.002,2060.9,2060.5,0.988]
[1772468949487,0.002,2060.9,2060.6,0.988]
[1772468950135,0.002,2060.9,2060.7,0.988]
[1772468950762,0.002,2060.9,2060.7,1.21316612]
[1772468950959,0.002,2060.9,2060.8,0.988]
[1772468951662,0.002,2061.2,2060.8,0.988]
[1772468951862,0.002,2061.2,2060.5,4.40313219]
[1772468952050,0.002,2061.2,2060.6,0.988]
[1772468952446,0.002,2061.2,2060.7,0.988]
[1772468952648,0.002,2061.2,2060.7,2.20113397]
[1772468953046,0.002,2061.2,2060.7,2.20117887]
[1772468953249,0.002,2061.2,2060.6,1.21318001]
[1772468953450,0.002,2061.2,2060.7,0.989]
[1772468953866,0.002,2061.2,2060.8,0.989]
[1772468954073,4.16134615,2061.2,2060.3,1.21341552]
[1772468954374,4.16134615,2061.2,2060.4,0.989]
[1772468954570,4.16134615,2061.2,2060.5,0.989]
[1772468954872,4.31390634,2061.0,2060.5,0.989]
[1772468956155,4.31390634,2061.0,2060.5,2.20229071]
[1772468957062,1.21306225,2060.9,2060.6,0.989]
[1772468957767,4.29691932,2060.8,2060.4,0.001]
[1772468957971,4.29691932,2060.8,2060.5,0.99]
[1772468958141,4.29691932,2060.8,2060.6,0.99]
[1772468958970,0.002,2061.0,2060.6,0.99]
[1772468959341,4.29891932,2061.0,2060.4,0.001]
[1772468960042,4.29891932,2061.0,2060.5,0.99]
[1772468960448,4.29891932,2061.0,2060.6,0.99]
[1772468960964,5.51194417,2061.0,2060.6,2.20322837]
[1772468961154,0.002,2061.0,2060.6,2.20322837]
[1772468961360,1.2150061,2061.0,2060.7,0.99]
[1772468961660,1.2150061,2061.0,2060.8,0.99]
[1772468961862,0.002,2061.0,2060.8,0.99]
[1772468962372,1.21500901,2061.0,2060.9,0.99]
[1772468962575,4.29691932,2060.9,2060.5,0.99]
[1772468962782,4.29691932,2060.9,2060.4,0.001]
[1772468962985,5.51004043,2060.8,2060.4,0.99]
[1772468963152,5.51004043,2060.8,2060.1,0.001]
[1772468963466,5.51004043,2060.8,2060.2,0.99]
[1772468963682,4.29691932,2060.7,2060.1,0.001]
[1772468963846,4.29691932,2060.7,2059.9,0.991]
[1772468964343,4.29691932,2060.7,2059.9,2.20464065]
[1772468964544,4.29691932,2060.7,2060.0,0.99]
[1772468964855,5.51015818,2060.6,2060.1,0.99]
[1772468965043,5.51015818,2060.6,2060.0,0.99]
[1772468965670,5.51015818,2060.6,2059.9,0.001]
[1772468965846,5.51015818,2060.6,2060.0,0.989]
[1772468966044,1.208,2061.0,2059.9,1.21464515]
[1772468966045,9.14934398,2060.9,2059.9,1.21464515]
[1772468966247,9.14934398,2060.9,2060.0,0.989]
[1772468967046,4.29691932,2060.8,2060.0,0.989]
[1772468967773,4.29691932,2060.8,2059.9,0.001]
[1772468968150,4.29691932,2060.8,2059.9,0.99]
[1772468968549,4.29691932,2060.0,2059.0,2.20313949]
[1772468968752,4.29691932,2060.0,2059.1,1.21511436]
[1772468969067,4.29691932,2060.0,2059.2,0.989]
[1772468969255,1.21365114,2059.9,2059.2,0.989]
[1772468969678,4.29691932,2059.8,2059.1,0.001]
[1772468971248,1.21376899,2059.7,2059.1,0.001]
[1772468971467,4.29691932,2059.6,2059.1,0.001]
[1772468972579,4.29691932,2059.4,2058.9,0.001]
[1772468973076,4.29691932,2059.4,2058.7,0.001]
[1772468973284,4.29691932,2059.1,2058.7,0.001]
[1772468974081,4.29691932,2058.9,2057.7,1.21492913]
[1772468974253,4.29691932,2058.9,2057.8,5.17902994]
[1772468974650,4.29691932,2058.9,2057.8,4.19202994]
[1772468974979,4.29691932,2058.9,2057.6,3.40174289]
[1772468975278,4.29691932,2058.5,2057.6,3.40174289]
[1772468975465,5.50991932,2058.5,2057.6,4.61675059]
[1772468975669,5.50991932,2058.5,2057.6,4.56675059]
[1772468975869,5.50991932,2058.5,2057.6,3.35174289]
[1772468976081,5.50991932,2058.5,2057.6,4.33974289]
[1772468976288,5.50991932,2058.5,2057.6,3.35174289]
[1772468976486,1.21441756,2058.6,2057.6,8.75876818]
[1772468976654,1.21441756,2058.6,2057.7,5.18002994]
[1772468976850,4.29691932,2058.5,2057.6,4.56673824]
[1772468977059,4.29691932,2058.3,2057.1,5.40733303]
[1772468977251,4.29691932,2058.3,2057.0,0.988]
[1772468977252,4.29691932,2058.1,2057.0,0.988]
[1772468977480,1.21465358,2058.2,2056.9,0.988]
[1772468977481,4.29691932,2057.9,2056.9,0.988]
[1772468977788,1.21465358,2058.2,2057.0,4.19202994]
[1772468978076,1.21465358,2058.2,2057.1,5.18002994]
[1772468978251,1.21465358,2058.2,2057.2,5.18002994]
[1772468978650,5.51139588,2058.6,2057.3,5.18002994]
[1772468978854,4.85801029,2058.5,2057.3,4.19202994]
[1772468979065,4.29691932,2058.4,2057.4,0.988]
[1772468979260,1.21459456,2058.3,2057.4,1.21512588]
[1772468979688,1.21459456,2058.3,2057.4,2.20312588]
[1772468980566,4.29691932,2058.2,2057.0,4.19202994]
[1772468980771,1.21459456,2058.3,2057.1,5.18002994]
[1772468980973,1.21459456,2058.3,2057.1,4.19202994]
[1772468981170,1.21459456,2058.3,2057.3,4.19202994]
[1772468981366,1.21447656,2058.5,2057.4,1.21512588]
[1772468981566,1.21447656,2058.5,2057.5,4.19202994]
[1772468982259,1.21447656,2058.5,2057.6,0.988]
[1772468982457,1.21443752,2058.6,2057.6,5.18002994]
[1772468982705,1.21433697,2058.8,2057.6,4.19202994]
[1772468982861,1.21412267,2059.1,2057.8,4.19202994]
[1772468983061,1.21412267,2059.1,2057.4,1.21512588]
[1772468983062,1.21412267,2059.1,2058.0,4.19202994]
[1772468983484,4.85640127,2059.2,2058.1,6.39474253]
[1772468983787,4.85640127,2059.2,2058.2,4.19202994]
[1772468983967,1.21406371,2059.2,2058.2,4.19202994]
[1772468984366,0.12,2059.3,2058.2,4.19202994]
[1772468984568,1.21397749,2059.4,2058.2,4.19202994]
[1772468984772,1.21397749,2059.4,2058.3,0.988]
[1772468984970,1.21397749,2059.4,2058.3,5.18002994]
[1772468985504,4.29691932,2059.5,2058.4,2.20253556]
[1772468985667,4.29691932,2059.5,2058.3,4.19202994]
[1772468985980,4.29691932,2059.3,2058.2,0.989]
[1772468986193,1.214,2059.2,2058.2,0.989]
[1772468986413,5.51091932,2059.2,2058.0,5.40680156]
[1772468986702,4.29691932,2059.1,2058.1,0.989]
[1772468986872,1.214,2059.2,2058.1,5.18102994]
[1772468987273,4.29891932,2059.4,2058.2,4.19202994]
[1772468987668,1.21400475,2059.3,2058.3,1.21459456]
[1772468987870,1.21400475,2059.3,2058.3,5.54029963]
[1772468988371,1.21400475,2059.3,2058.4,0.989]
[1772468988579,5.65145793,2059.3,2058.3,5.54029963]
[1772468988797,5.65145318,2059.2,2058.2,1.21462277]
[1772468989013,4.43745318,2059.1,2058.0,2.20377162]
[1772468989681,0.002,2059.4,2058.3,4.32570507]
[1772468989883,0.002,2059.4,2058.5,4.32570507]
[1772468990194,0.002,2059.4,2058.6,0.99]
[1772468990388,0.002,2059.4,2058.6,5.31570507]
[1772468990689,0.002,2059.4,2058.6,4.32570507]
[1772468990890,0.002,2059.4,2058.7,0.99]
[1772468991299,0.002,2059.4,2058.6,4.32570507]
[1772468991472,0.002,2059.4,2058.7,0.99]
[1772468991671,0.002,2059.4,2058.8,1.21429959]
[1772468991871,0.002,2059.4,2058.8,2.20429959]
[1772468992769,0.002,2059.4,2058.8,1.21429959]
[1772468992985,0.002,2059.4,2058.9,0.991]
[1772468993796,0.002,2059.4,2059.0,0.992]
[1772468994001,0.002,2059.6,2059.0,0.992]
[1772468994799,0.002,2059.6,2059.0,5.31770507]
[1772468995103,0.002,2059.9,2059.0,5.31770507]
[1772468995271,1.21566223,2059.9,2059.0,4.32570507]
[1772468995472,5.65311541,2059.9,2059.1,0.992]
[1772468995901,0.002,2059.9,2059.2,1.21406371]
[1772468996197,0.002,2059.9,2059.3,0.992]
[1772468996987,0.00859998,2266.1,2059.3,0.992]
[1772468996988,0.12,2060.7,2059.3,5.31770507]
[1772468997188,5.77067709,2060.7,2059.3,5.31770507]
[1772468997384,4.43745318,2060.6,2059.3,4.32570507]
[1772468997593,4.43745318,2060.3,2059.2,1.21406371]
[1772468997801,4.43745318,2060.2,2059.4,0.993]
[1772468998104,4.43745318,2060.2,2059.1,1.21412267]
[1772468998105,4.43745318,2060.0,2059.1,1.21412267]
[1772468998308,4.43745318,2060.0,2059.1,2.20712267]
[1772468999704,4.43745318,2060.0,2059.0,0.993]
[1772469000012,4.43745318,2059.8,2058.7,4.857324]
[1772469000207,4.43745318,2059.6,2058.4,5.31770507]
[1772469000701,4.43745318,2059.6,2058.4,4.32570507]
[1772469001006,4.43745318,2059.4,2058.2,1.21465358]
[1772469001211,4.43745318,2059.4,2058.3,5.31870507]
[1772469001443,4.43745318,2059.4,2058.4,0.993]
[1772469001706,4.43745318,2059.4,2058.2,5.54035865]
[1772469001907,1.211,2059.7,2058.4,5.31870507]
[1772469001908,5.64845318,2059.7,2058.4,5.31870507]
[1772469002114,6.8610658,2060.0,2058.6,4.32570507]
[1772469002316,4.43745318,2059.8,2058.6,4.32570507]
[1772469002487,1.21,2060.0,2058.7,5.31870507]
[1772469002803,0.002,2060.1,2058.9,4.32570507]
[1772469003017,0.002,2060.3,2059.1,4.32570507]
[1772469003224,0.002,2060.3,2059.3,4.32570507]
[1772469003382,1.21337578,2060.4,2059.4,5.31870507]
[1772469003584,1.21337578,2060.4,2059.5,0.993]
[1772469003799,5.65082896,2060.4,2059.5,0.993]
[1772469004018,2e-08,2060.4,2059.7,4.32570507]
[1772469004225,2e-08,2060.4,2059.8,0.993]
[1772469004532,2e-08,2060.4,2059.5,0.993]
[1772469004881,2e-08,2060.4,2059.5,5.31870507]
[1772469005084,9.2915734,2061.0,2059.7,4.32570507]
[1772469005085,1.21500411,2061.0,2059.7,4.32570507]
[1772469005311,1.21500913,2061.0,2059.9,4.32570507]
[1772469005511,1.21500913,2061.0,2060.0,0.993]
[1772469005714,0.002,2061.0,2060.0,5.31870507]
[1772469005911,0.002,2061.0,2060.2,4.32570507]
[1772469006095,0.002,2061.0,2060.3,1.21341552]
[1772469006292,0.002,2061.0,2060.4,4.32570507]
[1772469006490,9.28740832,2061.9,2060.4,5.31870507]
[1772469006685,4.43745318,2061.9,2060.4,5.31870507]
[1772469006885,1.33241773,2062.0,2060.6,4.32570507]
[1772469007110,1.33241922,2062.0,2060.6,4.32570507]
[1772469007620,0.48905815,2061.9,2060.8,4.32570507]
[1772469007989,0.48905815,2061.9,2061.0,4.32570507]
[1772469008322,0.12,2062.0,2061.1,5.31870507]
[1772469008526,4.84707028,2063.3,2061.1,5.31870507]
[1772469008527,4.43945318,2063.6,2061.5,4.32570507]
[1772469008734,4.43945318,2063.6,2062.3,4.32570507]
[1772469008735,0.002,2063.6,2062.3,4.32570507]
[1772469008887,0.002,2063.6,2062.2,2.51466906]
[1772469008888,0.002,2063.6,2062.5,4.32570507]
[1772469009083,0.002,2063.6,2062.7,4.32570507]
[1772469009495,1.21347516,2063.6,2062.8,0.995]
[1772469009818,1.21347516,2063.6,2062.5,0.995]
[1772469010317,0.002,2063.6,2062.6,0.996]
[1772469010616,0.002,2063.6,2062.6,4.32570507]
[1772469010818,0.002,2063.6,2062.7,5.32170507]
[1772469011124,0.002,2063.8,2062.7,4.32570507]
[1772469011291,1.21336195,2063.8,2062.9,4.32570507]
[1772469011489,0.002,2063.8,2062.9,4.32570507]
[1772469011708,1.21335827,2063.8,2063.0,0.996]
[1772469011906,1.21335827,2063.8,2063.1,0.995]
[1772469012307,0.002,2063.8,2063.1,0.996]
[1772469012514,0.002,2063.8,2062.6,9.1738411]
[1772469012721,0.002,2063.8,2062.7,5.32070507]
[1772469012927,0.002,2063.8,2062.7,4.32570507]
[1772469013616,0.002,2063.8,2062.8,0.996]
[1772469014134,0.002,2063.8,2062.9,0.996]
[1772469014333,0.002,2063.8,2063.0,5.5375325]
[1772469014538,0.002,2063.8,2062.7,4.84793069]
[1772469014705,0.002,2063.8,2062.7,1.21200368]
[1772469015031,0.002,2063.8,2062.8,0.996]
[1772469015205,0.002,2063.8,2062.7,1.21200368]
[1772469015404,0.002,2063.8,2062.8,0.996]
[1772469015939,0.002,2063.8,2062.9,0.996]
[1772469016142,0.002,2063.8,2063.0,0.997]
[1772469016333,0.002,2063.8,2063.1,0.997]
[1772469016530,0.002,2063.6,2062.8,4.35069111]
[1772469016718,0.002,2063.6,2062.7,0.996]
[1772469017458,0.002,2063.6,2062.7,5.1661526]
[1772469018258,0.002,2063.6,2062.7,4.1701526]
[1772469018422,0.002,2063.6,2062.4,8.30737887]
[1772469018611,0.002,2063.6,2062.5,1.21212121]
[1772469018812,0.002,2063.6,2062.6,0.997]
[1772469019012,0.002,2063.6,2062.5,1.21212121]
[1772469019210,4.31345043,2063.4,2062.4,3.4587276]
[1772469019857,4.31345043,2063.1,2061.7,1.21254634]
[1772469020017,4.31345043,2063.1,2061.8,0.997]
[1772469020238,4.31345043,2063.1,2061.8,0.996]
[1772469020573,4.31345043,2063.1,2061.4,4.1701526]
[1772469020574,4.31345043,2062.6,2061.4,5.38291256]
[1772469020883,1.21180646,2063.1,2061.5,4.1701526]
[1772469021160,1.21180646,2063.1,2061.7,4.1701526]
[1772469021559,1.21174514,2063.2,2061.7,4.1701526]
[1772469021766,1.21174514,2063.2,2061.9,4.1701526]
[1772469022665,0.002,2063.6,2062.2,4.1701526]
[1772469022865,0.002,2063.6,2062.0,1.21241513]
[1772469022866,4.31345043,2063.3,2062.0,1.21241513]
[1772469023058,0.002,2063.6,2062.1,4.1701526]
[1772469023257,4.31545043,2063.6,2062.1,4.1701526]
[1772469023654,0.026235,2063.6,2062.2,4.1701526]
[1772469024565,0.026235,2063.6,2062.4,4.1701526]
[1772469024566,1.2115338,2063.5,2062.4,4.1701526]
[1772469024749,1.2115338,2063.5,2062.5,1.002]
[1772469024941,1.2115338,2063.5,2062.4,4.1701526]
[1772469025277,1.2115338,2063.5,2062.5,1.002]
[1772469025680,1.2115338,2063.5,2062.1,7.91737854]
[1772469025681,0.065536,2063.4,2062.1,7.91737854]
[1772469025842,2.57052554,2063.3,2062.1,6.70506375]
[1772469026042,0.14948499,2063.2,2062.1,4.1701526]
[1772469026242,0.14948499,2063.2,2061.8,1.004]
[1772469026243,6.88397597,2063.0,2061.8,1.004]
[1772469026541,2.72001053,2062.7,2061.4,1.21276802]
[1772469026740,6.88397597,2062.4,2061.0,9.02202303]
[1772469026955,4.31345043,2062.3,2061.0,4.1701526]
[1772469027483,0.21502099,2062.2,2061.0,4.1701526]
[1772469027640,2.57052554,2062.0,2060.7,5.1741526]
[1772469027972,0.065536,2062.2,2060.8,5.1741526]
[1772469028344,0.065536,2062.2,2060.9,1.004]
[1772469028539,1.21235633,2062.1,2060.8,4.1701526]
[1772469028738,1.21235633,2062.1,2060.9,1.004]
[1772469029075,1.21235633,2062.1,2060.9,5.1741526]
[1772469029749,4.31345043,2061.9,2060.6,1.004]
[1772469030070,4.31345043,2061.9,2061.0,0.001]
[1772469030645,1.21253273,2061.8,2061.0,0.001]
[1772469032148,5.52598316,2061.8,2061.0,0.001]
[1772469032649,1.21247393,2061.9,2061.1,1.21294454]
[1772469032849,1.21247393,2061.9,2061.0,9.02293077]
[1772469032850,1.21247393,2061.9,2061.0,5.38415026]
[1772469033358,1.21247393,2061.9,2061.0,0.001]
[1772469035278,1.21247393,2061.9,2061.0,4.1711526]
[1772469035490,2.42746159,2062.0,2061.0,4.1711526]
[1772469035780,1.21246159,2062.0,2061.0,4.1711526]
[1772469036494,4.31345043,2063.0,2061.0,4.1711526]
[1772469036681,0.065536,2062.7,2061.0,4.1711526]
[1772469037004,1.21223876,2062.3,2061.0,4.1711526]
[1772469037287,1.21223876,2062.3,2061.0,0.001]
[1772469037288,0.14948499,2062.0,2061.0,0.001]
[1772469037581,0.14948499,2062.0,2060.8,1.21409817]
[1772469037582,4.46293542,2061.9,2060.8,0.001]
[1772469038580,4.46293542,2061.9,2060.8,1.21411501]
[1772469038785,4.46293542,2061.9,2060.8,0.001]
[1772469039031,1.21253273,2061.8,2060.8,0.001]
[1772469039183,1.88215708,2061.2,2060.5,0.001]
[1772469039480,1.216,2061.1,2060.5,0.001]
[1772469039684,4.31345043,2061.0,2059.7,1.21373744]
[1772469039984,1.216,2061.5,2059.8,4.1701526]
[1772469041366,6.06486832,2062.0,2060.2,4.1701526]
[1772469041571,2.42745632,2062.0,2060.4,4.1701526]
[1772469041891,6.74057164,2062.5,2060.6,4.1701526]
[1772469042089,1.215,2062.5,2060.8,4.1701526]
[1772469042387,5.76745043,2062.9,2060.8,4.1701526]
[1772469042388,4.84782159,2062.8,2060.8,4.1701526]
[1772469043292,4.84782159,2062.8,2061.2,4.1701526]
[1772469043669,1.21194492,2062.9,2061.4,4.1701526]
[1772469044468,0.14948499,2062.8,2061.5,4.1701526]
[1772469044674,4.52847142,2062.8,2061.1,5.38309714]
[1772469044895,4.31345043,2062.5,2061.1,5.38309714]
[1772469045095,5.52645043,2062.4,2061.1,5.38309714]
[1772469045514,1.21223876,2062.3,2061.1,5.38309714]
[1772469045805,4.31345043,2062.2,2061.0,1.21400087]
[1772469045979,4.31345043,2062.2,2061.0,5.38415347]
[1772469046866,1.21223876,2062.3,2061.1,4.1701526]
[1772469047095,1.21223876,2062.3,2061.2,1.003]
[1772469047292,1.21223876,2062.3,2061.3,4.1701526]
[1772469047663,1.21223876,2062.3,2061.3,5.38293227]
[1772469047862,1.21223876,2062.3,2061.0,1.21395876]
[1772469048296,5.27189748,2062.3,2061.0,1.21395876]
[1772469048466,1.98061201,2062.2,2061.0,0.001]
[1772469048788,6.04027073,2062.2,2061.0,0.001]
[1772469049194,4.05965872,2062.1,2061.0,0.001]
[1772469049494,1.83112702,2061.9,2061.0,0.001]
[1772469049796,2.42953273,2061.8,2061.0,0.001]
[1772469050596,4.05965872,2061.7,2060.8,0.001]
[1772469050799,4.20914371,2061.7,2060.8,0.001]
[1772469051562,1.21265036,2061.6,2060.8,0.001]
[1772469052490,7.1034361,2061.6,2060.8,0.001]
[1772469053194,1.83112702,2061.3,2060.8,0.001]
[1772469053396,1.217,2061.2,2060.8,0.001]
[1772469053596,1.217,2061.2,2060.5,0.001]
[1772469053895,1.21294454,2061.1,2060.5,0.001]
[1772469055328,1.83112702,2060.6,2059.3,5.21990732]
[1772469055475,1.218,2060.5,2059.3,5.21990732]
[1772469055805,1.21335662,2060.4,2059.3,4.00590257]
[1772469056298,1.83112702,2060.0,2058.9,5.54728303]
[1772469056505,1.219,2059.9,2058.9,5.54728303]
[1772469056802,1.83112702,2059.7,2058.9,0.32714288]
[1772469056965,1.219,2059.9,2059.0,4.00590257]
[1772469057695,1.21335662,2060.4,2059.0,4.00590257]
[1772469057905,2.43029774,2060.6,2059.2,4.00590257]
[1772469058104,0.14948499,2060.4,2059.2,4.00590257]
[1772469058722,2.43029774,2060.6,2059.2,4.00590257]
[1772469058920,2.43028654,2060.6,2059.2,5.00690257]
[1772469059105,2.43025373,2060.6,2059.2,5.00690257]
[1772469059303,2.43025373,2060.6,2059.4,4.00590257]
[1772469059617,4.26138075,2060.6,2059.4,4.00590257]
[1772469060526,2.43025373,2060.6,2059.4,5.21983397]
[1772469060707,2.43025373,2060.6,2059.5,4.00590257]
[1772469060708,1.21325373,2060.6,2059.5,4.00590257]